bitfinex-derivatives/quotes_BTCF0:USTF0_20251214
["timestamp","ask_amount","ask_price","bid_price","bid_amount"]
[1765753575505,0.57366,88215.0,88214.0,0.580465]
[1765753576797,0.94156721,88221.0,88220.0,0.56913]
[1765753577097,0.94556721,88221.0,88220.0,0.57013]
[1765753577404,0.93856721,88221.0,88220.0,0.57013]
[1765753578205,0.94556721,88221.0,88220.0,0.57013]
[1765753583205,0.01110721,88221.0,88220.0,0.57013]
[1765753586315,0.60903721,88221.0,88220.0,0.29131]
[1765753586505,0.60903721,88221.0,88220.0,0.001]
[1765753587014,0.60903721,88221.0,88220.0,0.61524]
[1765753596212,0.01110721,88221.0,88220.0,0.61524]
[1765753597921,0.00016997,88222.0,88221.0,0.8054442]
[1765753598114,0.00016997,88222.0,88221.0,1.22732838]
[1765753599233,0.00416997,88222.0,88221.0,1.1672442]
[1765753599916,0.00916997,88222.0,88221.0,1.1682442]
[1765753608528,0.00916997,88222.0,88221.0,0.8074442]
[1765753608914,0.10180915,88250.0,88249.0,0.60495]
[1765753609119,0.60687,88246.0,88245.0,0.616281]
[1765753609321,0.3608,88251.0,88250.0,0.6162805]
[1765753609322,0.96767,88251.0,88250.0,0.6162805]
[1765753609518,0.96767,88251.0,88250.0,0.6275781]
[1765753609519,0.99253188,88251.0,88250.0,0.6275781]
[1765753609722,0.60687,88240.0,88239.0,0.66604762]
[1765753610025,0.60687,88240.0,88239.0,0.67737952]
[1765753610223,0.60687,88239.0,88238.0,0.71144]
[1765753610627,0.60687,88239.0,88238.0,1.01506]
[1765753611422,0.60687,88239.0,88238.0,0.71144]
[1765753611740,0.0143319,88240.0,88231.0,0.00016997]
[1765753611741,0.6182028,88232.0,88231.0,0.00016997]
[1765753611927,0.9790028,88232.0,88231.0,0.00016997]
[1765753612521,0.60687,88222.0,88220.0,0.06109762]
[1765753612723,0.60687,88220.0,88219.0,0.06109762]
[1765753612926,0.60687,88220.0,88219.0,0.07234252]
[1765753613527,0.60687,88220.0,88219.0,0.37596252]
[1765753613722,0.60687,88220.0,88219.0,0.67729252]
[1765753614325,0.60634939,88220.0,88219.0,0.67729252]
[1765753614523,0.60734939,88220.0,88219.0,0.66604762]
[1765753615032,0.60934939,88220.0,88219.0,0.66704762]
[1765753616733,0.60934939,88220.0,88219.0,0.67847657]
[1765753618335,0.60934939,88220.0,88219.0,0.61737895]
[1765753620334,0.003,88220.0,88219.0,0.61737895]
[1765753620632,0.003,88220.0,88219.0,0.97817895]
[1765753621038,0.00016997,88228.0,88227.0,0.6303634]
[1765753621839,0.29483997,88228.0,88227.0,0.6303634]
[1765753622038,0.59840997,88228.0,88227.0,0.6303634]
[1765753622624,0.60340997,88228.0,88227.0,0.6323634]
[1765753623133,0.00516997,88228.0,88227.0,0.6323634]
[1765753623332,0.00216997,88228.0,88227.0,0.6313634]
[1765753623529,0.00516997,88228.0,88227.0,0.9931634]
[1765753623831,0.3608,88243.0,88242.0,0.7720115]
[1765753624139,0.65547,88243.0,88242.0,0.7720115]
[1765753624336,0.95904,88243.0,88242.0,0.7720115]
[1765753625041,0.3648,88243.0,88242.0,0.7730115]
[1765753625343,0.004,88243.0,88242.0,0.7730115]
[1765753625731,0.00016997,88251.0,88250.0,0.6303605]
[1765753625932,0.3608,88260.0,88259.0,0.6303593]
[1765753626132,0.3608,88260.0,88259.0,1.3417593]
[1765753626537,0.65547,88260.0,88259.0,1.3417593]
[1765753626750,0.95904,88260.0,88259.0,1.33043]
[1765753627732,0.96304,88260.0,88259.0,1.33043]
[1765753628131,0.96504,88260.0,88259.0,1.33043]
[1765753628341,0.3668,88260.0,88259.0,1.33043]
[1765753628549,0.006,88260.0,88259.0,1.33043]
[1765753628937,0.0044774,88260.0,88259.0,1.33043]
[1765753629744,0.002,88260.0,88259.0,1.33043]
[1765753629951,0.002,88260.0,88259.0,1.33143]
[1765753630535,0.59840997,88268.0,88267.0,0.61903]
[1765753630931,0.59824,88260.0,88259.0,0.00416997]
[1765753631136,0.59824,88260.0,88259.0,0.00316997]
[1765753631337,0.59824,88260.0,88259.0,0.31517997]
[1765753631544,0.59824,88260.0,88259.0,0.62219997]
[1765753631841,0.59824,88260.0,88259.0,0.61919997]
[1765753632245,0.6095692,88260.0,88259.0,0.00016997]
[1765753633254,0.6095692,88260.0,88259.0,0.00316997]
[1765753633438,0.6095692,88260.0,88259.0,0.00416997]
[1765753633633,0.3608,88261.0,88246.0,0.6458609]
[1765753633634,0.59824,88247.0,88246.0,0.6458609]
[1765753633834,0.59824,88247.0,88246.0,0.3338509]
[1765753634944,0.59924,88247.0,88246.0,0.3438509]
[1765753635548,0.59924,88247.0,88246.0,0.33252]
[1765753635851,0.60024,88247.0,88246.0,0.33952]
[1765753636047,0.60024,88247.0,88246.0,0.65153]
[1765753636446,0.60024,88247.0,88246.0,0.33952]
[1765753636650,0.60024,88247.0,88246.0,0.63603]
[1765753636950,0.002,88247.0,88246.0,0.63603]
[1765753637355,0.60024,88247.0,88246.0,0.63603]
[1765753638355,0.60024,88247.0,88246.0,0.32901]
[1765753638841,0.60024,88247.0,88246.0,0.63603]
[1765753641765,0.60024,88247.0,88246.0,0.017]
[1765753645757,0.59824,88240.0,88239.0,0.6303619]
[1765753646952,0.59824,88240.0,88239.0,0.6453619]
[1765753647151,0.59924,88240.0,88239.0,0.6453619]
[1765753648157,0.60024,88240.0,88239.0,0.6563619]
[1765753649554,0.60024,88240.0,88239.0,0.026]
[1765753650564,0.60024,88240.0,88239.0,0.30795]
[1765753650767,0.60024,88240.0,88239.0,0.026]
[1765753650972,0.59924,88240.0,88239.0,0.011]
[1765753651155,0.60524,88240.0,88239.0,0.012]
[1765753651463,0.60524,88240.0,88239.0,0.002]
[1765753651464,0.60824,88240.0,88239.0,0.002]
[1765753652064,0.60424,88240.0,88239.0,0.57101]
[1765753652259,0.60824,88240.0,88239.0,0.57201]
[1765753652459,0.60724,88240.0,88239.0,0.57201]
[1765753652862,0.009,88240.0,88239.0,0.57201]
[1765753653568,0.004,88240.0,88239.0,0.57101]
[1765753653766,0.009,88240.0,88239.0,0.57201]
[1765753653957,0.29409,88240.0,88239.0,0.57201]
[1765753654273,0.58675,88240.0,88239.0,0.28295]
[1765753654466,0.59075,88240.0,88239.0,0.002]
[1765753654864,0.59075,88240.0,88239.0,0.57201]
[1765753655158,0.58875,88240.0,88239.0,0.57201]
[1765753655866,0.58675,88240.0,88239.0,0.57101]
[1765753656059,0.007,88240.0,88239.0,0.57201]
[1765753656456,0.009,88240.0,88239.0,0.57201]
[1765753656658,0.29409,88240.0,88239.0,0.57201]
[1765753656969,0.58775,88240.0,88239.0,0.57101]
[1765753657268,0.008,88240.0,88239.0,0.57201]
[1765753657456,0.007,88240.0,88239.0,0.57201]
[1765753657652,0.59075,88240.0,88239.0,0.57201]
[1765753658567,0.58575,88240.0,88239.0,0.57101]
[1765753658768,0.58875,88240.0,88239.0,0.57201]
[1765753658972,0.005,88240.0,88239.0,0.93281]
[1765753659159,0.00016997,88248.0,88247.0,0.5813409]
[1765753659354,0.00016997,88248.0,88247.0,1.2925409]
[1765753659558,0.29025846,88270.0,88252.0,0.5813402]
[1765753660259,0.58375,88261.0,88260.0,0.5813392]
[1765753660769,0.58391997,88269.0,88268.0,0.57001]
[1765753660970,0.60893405,88269.0,88268.0,0.57001]
[1765753661162,0.58391997,88269.0,88268.0,0.57001]
[1765753661566,0.58375,88268.0,88267.0,0.0113282]
[1765753662269,0.58375,88268.0,88267.0,0.2932782]
[1765753662663,0.58675,88268.0,88267.0,0.2942782]
[1765753663059,0.58675,88268.0,88267.0,0.5823382]
[1765753663271,0.6117623,88268.0,88267.0,0.001]
[1765753663467,0.6147623,88268.0,88267.0,0.002]
[1765753671682,0.9755623,88268.0,88267.0,0.002]
[1765753672367,0.9755623,88268.0,88260.0,0.00016997]
[1765753672368,0.5950791,88261.0,88260.0,0.00016997]
[1765753672568,0.58375,88239.0,88238.0,0.581342]
[1765753673275,0.94455,88251.0,88250.0,0.5813405]
[1765753673867,0.58375,88251.0,88250.0,0.5813405]
[1765753674075,0.58375,88247.0,88246.0,0.293281]
[1765753674281,0.94455,88247.0,88246.0,0.011331]
[1765753674779,0.94455,88247.0,88246.0,0.293281]
[1765753675277,0.58375,88243.0,88242.0,0.58151137]
[1765753675480,0.58375,88243.0,88242.0,0.00016997]
[1765753676866,0.58375,88243.0,88242.0,0.00116997]
[1765753677071,0.58675,88243.0,88242.0,0.00116997]
[1765753677472,0.58975,88243.0,88242.0,0.00216997]
[1765753678473,0.29109,88243.0,88242.0,0.56456997]
[1765753678673,0.58491,88243.0,88242.0,0.56456997]
[1765753681486,0.006,88243.0,88242.0,0.56456997]
[1765753682187,0.57959,88243.0,88242.0,0.56456997]
[1765753683180,0.006,88243.0,88242.0,0.56456997]
[1765753683487,0.28577,88243.0,88242.0,0.56456997]
[1765753683785,0.006,88243.0,88242.0,0.56456997]
[1765753684581,0.3608,88255.0,88254.0,0.5624]
[1765753685175,0.27993997,88259.0,88258.0,0.5737295]
[1765753685888,0.57375997,88259.0,88258.0,0.5737295]
[1765753686185,0.57375997,88259.0,88258.0,1.27348]
[1765753686583,0.57975997,88259.0,88258.0,1.27448]
[1765753687480,0.57975997,88259.0,88258.0,1.27548]
[1765753687481,0.01116997,88259.0,88258.0,1.27548]
[1765753688071,0.00816997,88259.0,88258.0,1.27548]
[1765753689182,0.00416997,88259.0,88258.0,1.27448]
[1765753689587,0.00216997,88259.0,88258.0,1.27348]
[1765753689889,0.00216997,88259.0,88258.0,1.27448]
[1765753690184,0.00016997,88259.0,88258.0,1.27548]
[1765753690381,0.3608,88283.0,88264.0,0.7450787]
[1765753690580,0.93439,88283.0,88282.0,0.5624]
[1765753690781,0.95972221,88283.0,88282.0,0.5624]
[1765753691586,0.95972221,88283.0,88282.0,0.57394135]
[1765753692583,0.96272221,88283.0,88282.0,0.57494135]
[1765753692887,0.96772221,88283.0,88282.0,0.57594135]
[1765753693086,0.94239,88283.0,88282.0,0.57594135]
[1765753693281,0.93939,88283.0,88282.0,0.57494135]
[1765753693594,0.94039,88283.0,88282.0,0.57594135]
[1765753694085,0.93739,88283.0,88282.0,0.57594135]
[1765753694299,0.93939,88283.0,88282.0,0.57594135]
[1765753695890,0.64557,88283.0,88282.0,0.5644]
[1765753696088,0.64557,88283.0,88282.0,0.002]
[1765753696089,0.9507163,88283.0,88282.0,0.002]
[1765753696794,0.9507163,88283.0,88282.0,0.5644]
[1765753696988,0.9507163,88283.0,88282.0,0.002]
[1765753698189,0.9507163,88283.0,88282.0,0.5644]
[1765753698190,0.93939,88283.0,88282.0,0.5644]
[1765753698494,0.3658,88283.0,88282.0,0.5644]
[1765753698891,0.93939,88283.0,88282.0,0.5644]
[1765753699280,0.3658,88283.0,88282.0,0.5644]
[1765753699890,0.005,88283.0,88282.0,0.5644]
[1765753703603,0.57859,88283.0,88282.0,0.5644]
[1765753703792,0.57859,88283.0,88282.0,0.71288]
[1765753703990,0.93939,88283.0,88282.0,0.002]
[1765753705292,0.0113273,88275.0,88274.0,0.00016997]
[1765753705497,0.9457173,88275.0,88274.0,0.00016997]
[1765753707002,0.9467173,88275.0,88274.0,0.00016997]
[1765753707502,0.9477173,88275.0,88274.0,0.00016997]
[1765753709404,0.57081,88259.0,88258.0,0.91607]
[1765753709897,0.57081,88249.0,88248.0,0.55055]
[1765753710492,0.57081,88249.0,88248.0,0.71839]
[1765753710493,0.27443,88249.0,88248.0,0.71839]
[1765753710697,0.00016997,88257.0,88248.0,0.43842]
[1765753710902,0.57097997,88257.0,88256.0,0.55055]
[1765753711592,0.57097997,88257.0,88256.0,0.27997]
[1765753712105,0.56444,88250.0,88249.0,0.5595506]
[1765753713603,0.56744,88250.0,88249.0,0.5605506]
[1765753713912,0.57044,88250.0,88249.0,0.5615506]
[1765753714700,0.56944,88250.0,88249.0,0.5605506]
[1765753714893,0.56944,88250.0,88249.0,0.54922]
[1765753715502,0.56844,88250.0,88249.0,0.54922]
[1765753718905,0.56844,88250.0,88249.0,0.72161]
[1765753720105,0.57732,88250.0,88249.0,0.72161]
[1765753729503,0.57332,88241.0,88240.0,0.00016997]
[1765753729806,0.57332,88241.0,88240.0,0.01173639]
[1765753729999,0.57332,88241.0,88240.0,0.00016997]
[1765753731006,0.57332,88241.0,88240.0,0.27307997]
[1765753731305,0.57332,88241.0,88240.0,0.54132997]
[1765753731506,0.001,88241.0,88240.0,0.54132997]
[1765753731706,0.002,88241.0,88240.0,0.54132997]
[1765753732295,0.001,88241.0,88240.0,0.54132997]
[1765753732611,0.002,88241.0,88240.0,0.54132997]
[1765753733109,0.001,88241.0,88240.0,0.54132997]
[1765753733409,0.002,88241.0,88240.0,0.54232997]
[1765753735101,0.001,88241.0,88240.0,0.54132997]
[1765753735306,0.002,88241.0,88240.0,0.54232997]
[1765753735707,0.64411,88248.0,88247.0,0.54116]
[1765753736107,0.3608,88248.0,88247.0,0.54116]
[1765753737911,0.3638,88248.0,88247.0,0.54216]
[1765753738206,0.3658,88248.0,88247.0,0.54216]
[1765753739512,0.92883,88248.0,88247.0,0.54216]
[1765753739709,0.92883,88248.0,88247.0,0.001]
[1765753743714,0.64867,88248.0,88247.0,0.57526]
[1765753743918,0.3658,88248.0,88247.0,0.57526]
[1765753745609,0.3658,88248.0,88247.0,1.28618]
[1765753745805,0.92883,88248.0,88247.0,0.001]
[1765753746005,0.92883,88248.0,88240.0,0.00016997]
[1765753746006,0.5743616,88241.0,88240.0,0.00016997]
[1765753746719,0.59973377,88241.0,88240.0,0.00016997]
[1765753747310,0.60073377,88241.0,88240.0,0.00016997]
[1765753747614,0.56503,88241.0,88240.0,0.57442997]
[1765753748319,0.002,88241.0,88240.0,0.57442997]
[1765753748518,0.001,88241.0,88240.0,0.57442997]
[1765753748724,0.28487,88241.0,88240.0,0.57542997]
[1765753749023,0.56503,88241.0,88240.0,0.57542997]
[1765753749910,0.56403,88241.0,88240.0,0.57542997]
[1765753750103,0.56503,88241.0,88240.0,0.57542997]
[1765753771929,0.56503,88241.0,88240.0,0.71474997]
[1765753772136,0.28487,88241.0,88240.0,0.71474997]
[1765753772532,0.55152,88241.0,88240.0,0.71474997]
[1765753775132,0.002,88241.0,88240.0,0.71474997]
[1765753775327,0.52532,88241.0,88240.0,0.57542997]
[1765753775927,0.55095222,88241.0,88240.0,0.00116997]
[1765753781143,0.55095222,88241.0,88240.0,0.26114997]
[1765753781643,0.55095222,88241.0,88240.0,0.53714997]
[1765753786645,0.002,88241.0,88240.0,0.53714997]
[1765753787646,0.002,88241.0,88240.0,1.24794997]
[1765753791146,0.52532,88241.0,88240.0,1.24794997]
[1765753793939,0.52532,88241.0,88240.0,0.53714997]
[1765753794139,0.52532,88241.0,88240.0,1.24790997]
[1765753795445,0.52532,88241.0,88240.0,0.53714997]
[1765753801844,0.52532,88241.0,88240.0,0.69336997]
[1765753802842,0.52532,88241.0,88240.0,0.53714997]
[1765753808148,0.52532,88241.0,88240.0,0.69336997]
[1765753808857,0.52532,88241.0,88240.0,0.53714997]
[1765753814955,0.88612,88241.0,88240.0,0.00116997]
[1765753815259,0.91201304,88241.0,88240.0,0.00116997]
[1765753816161,0.64536304,88241.0,88240.0,0.63898177]
[1765753816352,0.91792304,88241.0,88240.0,0.63898177]
[1765753816751,0.89203,88241.0,88240.0,0.63898177]
[1765753823858,0.53123,88241.0,88240.0,0.63898177]
[1765753824258,0.55713856,88241.0,88240.0,0.63898177]
[1765753827856,0.002,88241.0,88240.0,0.63898177]
[1765753828156,0.3608,88254.0,88253.0,0.5310401]
[1765753828361,0.64222306,88254.0,88253.0,1.2416401]
[1765753828565,0.38670306,88254.0,88253.0,1.2416401]
[1765753828861,0.88399,88254.0,88253.0,1.2416401]
[1765753829253,0.88399,88254.0,88253.0,1.2426401]
[1765753829462,0.88799,88254.0,88253.0,1.2426401]
[1765753829665,0.89099,88254.0,88253.0,1.2436401]
[1765753830262,0.88699,88254.0,88253.0,1.2426401]
[1765753830456,0.88899,88254.0,88253.0,1.2426401]
[1765753831861,0.88599,88254.0,88253.0,1.2426401]
[1765753832165,0.88799,88254.0,88253.0,1.2426001]
[1765753832558,0.88599,88254.0,88253.0,1.2426001]
[1765753832756,0.88799,88254.0,88253.0,1.2426001]
[1765753833362,0.88599,88254.0,88253.0,1.2426001]
[1765753833564,0.88499,88254.0,88253.0,1.2416001]
[1765753833767,0.88699,88254.0,88253.0,1.2426001]
[1765753834164,0.88599,88254.0,88253.0,1.2426001]
[1765753834366,0.88699,88254.0,88253.0,1.2426001]
[1765753834964,0.88499,88254.0,88253.0,1.2416001]
[1765753835169,0.88699,88254.0,88253.0,1.2426001]
[1765753835568,0.52319,88241.0,88240.0,0.00016997]
[1765753835868,0.52319,88241.0,88228.0,0.08154469]
[1765753835869,0.52319,88229.0,88228.0,0.26531]
[1765753836371,0.52319,88223.0,88222.0,0.51971]
[1765753836564,0.52319,88223.0,88222.0,0.26531]
[1765753836957,0.88399,88223.0,88222.0,0.53082251]
[1765753837159,0.52319,88220.0,88219.0,0.00010271]
[1765753837361,0.52319,88208.0,88207.0,0.276646]
[1765753837867,0.52319,88203.0,88202.0,0.2766465]
[1765753838171,0.52319,88203.0,88202.0,0.5310465]
[1765753838369,0.52330565,88203.0,88202.0,0.5310465]
[1765753839370,0.52530565,88203.0,88202.0,0.5430465]
[1765753839670,0.52630565,88203.0,88202.0,0.5550465]
[1765753840172,0.52630565,88203.0,88202.0,0.56658379]
[1765753840564,0.25863565,88203.0,88202.0,0.56658379]
[1765753840770,0.52630565,88203.0,88202.0,0.56658379]
[1765753840969,0.52755123,88203.0,88202.0,0.56658379]
[1765753847076,0.00436123,88203.0,88202.0,0.56658379]
[1765753847265,0.52755123,88203.0,88202.0,0.56658379]
[1765753848181,0.00436123,88203.0,88202.0,0.56658379]
[1765753848566,0.25988123,88203.0,88202.0,0.56658379]
[1765753848777,0.52755123,88203.0,88202.0,0.56658379]
[1765753862202,0.52755123,88203.0,88190.0,0.10184914]
[1765753862203,0.65262,88170.0,88169.0,0.00022684]
[1765753862394,0.65262,88170.0,88157.0,0.0113424]
[1765753862395,0.51042,88161.0,88157.0,0.0113424]
[1765753862591,0.51042,88161.0,88160.0,0.01151022]
[1765753863095,0.51042,88161.0,88160.0,0.00010505]
[1765753863096,0.51166558,88161.0,88160.0,0.00010505]
[1765753863592,0.51166558,88161.0,88149.0,0.0113434]
[1765753863593,0.51042,88150.0,88149.0,0.51402]
[1765753863799,0.51042,88150.0,88149.0,0.72126]
[1765753863998,0.87246558,88150.0,88149.0,0.72126]
[1765753864598,0.87246558,88150.0,88149.0,0.73239796]
[1765753864808,0.87546558,88150.0,88149.0,0.73339796]
[1765753865404,0.87846558,88150.0,88149.0,0.73439796]
[1765753866696,0.87846558,88150.0,88149.0,0.01313796]
[1765753866900,0.87846558,88150.0,88149.0,0.52715796]
[1765753868992,0.87846558,88150.0,88149.0,0.01313796]
[1765753869193,0.87846558,88150.0,88149.0,0.52715796]
[1765753869599,0.36804558,88150.0,88149.0,0.52715796]
[1765753870405,0.63319558,88150.0,88149.0,0.52715796]
[1765753870707,0.87846558,88150.0,88149.0,0.52715796]
[1765753872399,0.006,88150.0,88149.0,0.52715796]
[1765753872704,0.51059017,88158.0,88157.0,0.5253624]
[1765753873910,0.51559017,88158.0,88157.0,0.5263624]
[1765753874306,0.67117017,88158.0,88157.0,0.001]
[1765753876314,0.67717017,88158.0,88157.0,0.001]
[1765753876618,0.26515,88136.0,88135.0,0.6831353]
[1765753876807,0.26528119,88136.0,88135.0,0.7587353]
[1765753877003,0.51055119,88136.0,88135.0,0.7587353]
[1765753877907,0.26728119,88136.0,88135.0,0.7587353]
[1765753878512,0.51255119,88136.0,88135.0,1.3940553]
[1765753878712,0.51355119,88136.0,88135.0,1.41513393]
[1765753879613,0.51355119,88136.0,88135.0,0.54644393]
[1765753879919,0.87435119,88136.0,88135.0,1.25740393]
[1765753880714,0.87435119,88136.0,88135.0,0.53509863]
[1765753880913,0.87435119,88136.0,88135.0,1.24605863]
[1765753881112,0.87435119,88136.0,88135.0,0.01]
[1765753881319,0.51042,88121.0,88120.0,0.25142]
[1765753881629,0.87122,88121.0,88120.0,0.25142]
[1765753882004,0.87122,88121.0,88120.0,0.2629389]
[1765753882321,0.87122,88121.0,88120.0,0.5255389]
[1765753882622,0.87522,88121.0,88120.0,0.0235189]
[1765753883118,0.87522,88121.0,88120.0,0.012]
[1765753883413,0.87522,88121.0,88110.0,0.00011749]
[1765753883414,0.5217684,88111.0,88110.0,0.00011749]
[1765753883610,0.5217684,88111.0,88088.0,0.15777]
[1765753883611,0.51042,88092.0,88091.0,0.5253708]
[1765753883915,0.51042,88092.0,88091.0,0.53681494]
[1765753884611,0.5105334,88092.0,88091.0,0.53681494]
[1765753884805,0.5135334,88092.0,88091.0,0.53681494]
[1765753885207,0.5135334,88092.0,88091.0,0.26286414]
[1765753885420,0.5245334,88092.0,88091.0,0.26286414]
[1765753885617,0.5245334,88092.0,88091.0,0.01144414]
[1765753885822,0.51042,88087.0,88086.0,0.2627715]
[1765753886014,0.87122,88087.0,88086.0,0.5253715]
[1765753886223,0.3608,88087.0,88086.0,0.53652532]
[1765753886515,0.92431,88087.0,88086.0,0.53652532]
[1765753887716,0.93431,88087.0,88086.0,0.53652532]
[1765753888113,0.3708,88087.0,88086.0,0.53652532]
[1765753888911,0.64686,88087.0,88086.0,0.53652532]
[1765753889415,0.92995,88087.0,88086.0,0.53652532]
[1765753892427,0.3708,88087.0,88086.0,0.53652532]
[1765753893017,0.92995,88087.0,88086.0,0.53652532]
[1765753893818,0.64686,88087.0,88086.0,0.53652532]
[1765753894022,0.92995,88087.0,88086.0,0.53652532]
[1765753896317,0.92995,88087.0,88086.0,0.02250532]
[1765753896519,0.92995,88087.0,88086.0,0.28300532]
[1765753896722,0.92995,88087.0,88086.0,0.54826532]
[1765753899127,0.92995,88087.0,88086.0,0.01115382]
[1765753899322,0.55915,88084.0,88083.0,0.46444]
[1765753900023,0.55915,88084.0,88083.0,0.72494]
[1765753900328,0.3708,88087.0,88074.0,0.20777]
[1765753900329,0.55915,88077.0,88074.0,0.05]
[1765753900519,0.15299,88081.0,88053.0,0.16224]
[1765753900520,0.55915,88063.0,88062.0,0.0113546]
[1765753900921,0.55915,88063.0,88062.0,0.28332684]
[1765753901132,0.63686,88066.0,88065.0,0.52576]
[1765753901429,0.55915,88052.0,88051.0,0.5372259]
[1765753901624,0.55915,88052.0,88051.0,0.0001098]
[1765753901625,0.57062669,88052.0,88051.0,0.0001098]
[1765753901929,0.57062669,88052.0,88037.0,0.36102718]
[1765753901930,0.55915,88038.0,88037.0,0.26072718]
[1765753902128,0.55915,88038.0,88037.0,0.52598718]
[1765753902427,0.55915,88038.0,88037.0,0.26072718]
[1765753902631,0.00017038,88046.0,88045.0,0.5371169]
[1765753902832,0.27623038,88046.0,88045.0,0.5371169]
[1765753903031,0.00017038,88046.0,88045.0,0.8979169]
[1765753903731,0.00012069,88052.0,88045.0,0.8979169]
[1765753903732,0.00212069,88052.0,88051.0,0.5371161]
[1765753904120,0.00012069,88052.0,88051.0,0.5371161]
[1765753904319,0.92007069,88052.0,88051.0,0.52576]
[1765753904531,0.16449,88047.0,88046.0,0.71148]
[1765753904726,0.72364,88047.0,88046.0,0.71148]
[1765753905230,0.55915,88044.0,88043.0,0.00017038]
[1765753905431,0.55915,88044.0,88043.0,0.52593038]
[1765753906022,0.92307069,88052.0,88051.0,0.5371161]
[1765753906223,0.95306219,88052.0,88051.0,0.5371161]
[1765753906733,0.95306219,88052.0,88051.0,0.2605]
[1765753906931,0.55915,88048.0,88047.0,0.0113566]
[1765753907128,0.55915,88048.0,88047.0,0.5371166]
[1765753907623,0.55915,88048.0,88047.0,0.6993566]
[1765753907819,0.27606,88048.0,88047.0,0.6993566]
[1765753908021,0.63998069,88052.0,88051.0,0.5371161]
[1765753908225,0.95207259,88052.0,88051.0,0.5371161]
[1765753909237,0.95107259,88052.0,88051.0,0.5371161]
[1765753910029,0.95407259,88052.0,88051.0,0.5371161]
[1765753911932,0.72364,88048.0,88047.0,0.2718566]
[1765753912134,0.7546419,88048.0,88047.0,0.2718566]
[1765753912336,0.55915,88044.0,88043.0,0.00017038]
[1765753912524,0.5901519,88044.0,88043.0,0.00017038]
[1765753912730,0.9509519,88044.0,88043.0,0.00017038]
[1765753912929,0.9509519,88044.0,88043.0,8e-08]
[1765753913126,0.3918019,88044.0,88037.0,0.00022718]
[1765753913331,0.72364,88038.0,88037.0,0.00022718]
[1765753913529,0.7546419,88038.0,88037.0,0.00022718]
[1765753915036,0.7546419,88038.0,88037.0,0.26072718]
[1765753915331,0.5901519,88038.0,88037.0,0.52598718]
[1765753915528,0.5921519,88038.0,88037.0,0.52598718]
[1765753915722,0.5921519,88038.0,88037.0,0.00022718]
[1765753915723,0.7566419,88038.0,88037.0,0.00022718]
[1765753915929,0.5921519,88038.0,88037.0,0.52598718]
[1765753916231,0.5941519,88038.0,88037.0,0.52598718]
[1765753916636,0.2883019,88038.0,88037.0,0.52598718]
[1765753916936,0.2883019,88038.0,88028.0,0.46296345]
[1765753916937,0.52206,88024.0,88020.0,0.0613225]
[1765753917128,0.5530619,88024.0,88022.0,0.01135218]
[1765753917438,0.5530619,88024.0,88020.0,0.0613225]
[1765753917623,0.52206,88021.0,88020.0,0.6006825]
[1765753917935,0.2844244,88021.0,88020.0,0.7640626]
[1765753918130,0.5531844,88021.0,88020.0,0.6120426]
[1765753918528,0.5531844,88021.0,88020.0,0.0726826]
[1765753918723,0.5531844,88021.0,88020.0,0.6120426]
[1765753919127,0.5551844,88021.0,88020.0,0.0726826]
[1765753919825,0.5571844,88021.0,88020.0,0.0726826]
[1765753920930,0.5571844,88021.0,88020.0,0.0613225]
[1765753921135,0.5571844,88021.0,88020.0,0.03588523]
[1765753922637,0.5571844,88021.0,88020.0,0.57524523]
[1765753922832,0.5551844,88021.0,88020.0,0.57524523]
[1765753923038,0.0021225,88021.0,88020.0,1.44154523]
[1765753923234,0.0041225,88021.0,88020.0,1.44154523]
[1765753923432,0.3608,88039.0,88031.0,0.53936]
[1765753923634,0.0291247,88038.0,88031.0,0.5507187]
[1765753923835,0.02929508,88032.0,88031.0,0.5507187]
[1765753924136,0.00017038,88032.0,88031.0,0.5507187]
[1765753924524,0.00025983,88032.0,88031.0,0.5507187]
[1765753925236,0.00825983,88032.0,88031.0,1.2650387]
[1765753925735,0.88286,88049.0,88048.0,0.5507165]
[1765753926040,0.88286,88049.0,88048.0,0.0113565]
[1765753926041,0.91201013,88049.0,88048.0,0.0113565]
[1765753926237,0.55121013,88049.0,88048.0,0.0113565]
[1765753926631,0.55121013,88049.0,88047.0,0.71428]
[1765753926632,0.52206,88048.0,88047.0,0.71428]
[1765753926846,0.02926803,88048.0,88047.0,1.25364]
[1765753927136,0.0001179,88048.0,88047.0,1.25364]
[1765753927336,0.2534179,88048.0,88047.0,1.25364]
[1765753927645,0.55136086,88048.0,88047.0,1.25364]
[1765753928140,0.55436086,88048.0,88047.0,1.25364]
[1765753928343,0.28560086,88048.0,88047.0,1.25364]
[1765753928538,0.28560086,88048.0,88047.0,1.25464]
[1765753928539,0.0091179,88048.0,88047.0,1.25464]
[1765753928849,0.25347038,88056.0,88055.0,0.53936]
[1765753929031,0.28267712,88056.0,88055.0,0.53936]
[1765753929232,0.28267712,88056.0,88055.0,0.5507156]
[1765753929550,0.52206,88051.0,88050.0,0.5507161]
[1765753929843,0.52206,88051.0,88047.0,0.001]
[1765753929844,0.52206,88048.0,88047.0,0.001]
[1765753930145,0.5512844,88048.0,88047.0,0.001]
[1765753930350,0.52206,88046.0,88045.0,0.7256368]
[1765753930536,0.52206,88046.0,88039.0,0.00017038]
[1765753930537,0.52206,88040.0,88039.0,0.00017038]
[1765753930844,0.5512844,88040.0,88039.0,0.53953038]
[1765753931042,0.5512844,88040.0,88039.0,1.25405038]
[1765753931239,0.5512844,88040.0,88039.0,0.00017038]
[1765753931742,0.9120844,88040.0,88039.0,0.00017038]
[1765753931948,0.52206,88031.0,88030.0,0.0113587]
[1765753932140,0.88286,88031.0,88030.0,0.3915987]
[1765753932341,0.52206,88023.0,88022.0,0.3608]
[1765753932534,0.52206,88023.0,88022.0,1.07528]
[1765753932936,0.52206,88023.0,88022.0,0.3721598]
[1765753933137,0.52206,88021.0,88020.0,0.57524523]
[1765753933344,0.52206,88026.0,88025.0,0.0113594]
[1765753933533,0.55130883,88026.0,88025.0,0.2834794]
[1765753933844,0.55130883,88026.0,88022.0,0.15202]
[1765753933845,0.52206,88023.0,88022.0,0.004]
[1765753934041,0.55130883,88023.0,88022.0,0.004]
[1765753934247,0.52206,88022.0,88021.0,0.0113599]
[1765753934836,0.52206,88021.0,88020.0,0.05188523]